Cogmind - Beta 16.1 @@@ ROGUE MODE // 2026.04.28 @ 14:15:58 Player: KURIIRI Result: Destroyed by Shrapnel Trap Performance ------------- Evolutions (0) 0 Regions Visited (2) 400 Robots Destroyed (47) 235 Value Destroyed (1114) 1114 Prototype IDs (13) 260 Alien Tech Used (0) 0 Bonus (-74) -74 TOTAL SCORE: 1935 Bonus ------- Friendly Fire -74 Cogmind --------- Core Integrity 0/250 Matter 300/300 Energy 199/200 System Corruption 0% Temperature Cool (0) Movement Rolling (105) Ox1 Location -10/Subcaves Parts ------- > --- POWER (1) -------- Subdweller Power Source > --- PROPULSION (2) --- Light Treads Armored Wheel > --- UTILITY (2) ------ (None) > --- WEAPON (2) ------- Subdweller Beam Cannon > --- INVENTORY (5) ---- Armored Wheel Armored Wheel Subdweller Beam Cannon Hammer Peak State ------------ > --- POWER ------------ Subdweller Power Source > --- PROPULSION ------- Light Treads Armored Wheel > --- UTILITY ---------- Scrap Shield > --- WEAPON ----------- Subdweller Beam Cannon Subdweller Beam Cannon > --- INVENTORY -------- Armored Wheel Armored Wheel Subdweller Beam Cannon Hammer [Rating: 13] Favorites ----------- Power Light Ion Engine Engine Light Ion Engine Propulsion Light Treads Treads Light Treads Leg Aluminum Leg Wheel Armored Wheel Utility Scrap Shield Device Tractor Beam Storage Large Storage Unit Protection Scrap Shield Weapon Subdweller Beam Cannon Energy Gun Beam Rifle Energy Cannon Subdweller Beam Cannon Ballistic Gun Subdweller Machine Gun Build | -11 -10 -10 ------- Run | Yrd Mat Sub Slots Evolved . | . . . Power . | . . . Propulsion . | . . . Utility . | . . . Weapon . | . . . Parts Attached 29 | 3 12 14 Power 4 | . 2 2 Engine 4 | . 2 2 Core . | . . . Reactor . | . . . Propulsion 5 | 2 1 2 Treads 3 | 2 . 1 Leg . | . . . Wheel 2 | . 1 1 Hover . | . . . Flight . | . . . Utility 8 | 1 5 2 Device 2 | 1 1 . Storage 2 | . 2 . Processor . | . . . Hackware . | . . . Protection 4 | . 2 2 Artifact . | . . . Weapon 12 | . 4 8 Energy Gun 2 | . 2 . Energy Cannon 8 | . 2 6 Ballistic Gun 2 | . . 2 Ballistic Cannon . | . . . Launcher . | . . . Special Weapon . | . . . Impact Weapon . | . . . Slashing Weapon . | . . . Piercing Weapon . | . . . Special Melee Weapon . | . . . Unidentified Prototypes . | . . . Parts Lost 8 | . . 8 Power 2 | . . 2 Propulsion 2 | . . 2 Utility 1 | . . 1 Weapon 3 | . . 3 Highest Loss Streak 4 | . . 4 To Critical Strikes . | . . . Average Backups 7 | 6 12 5 Power . | 1 1 . Propulsion 2 | 4 5 2 Utility 1 | . 3 . Weapon 2 | 1 2 2 Tool/Special . | . . . Unused Backups 24 | 6 5 13 Power 2 | 1 . 1 Propulsion 6 | 2 2 2 Utility 4 | 1 . 3 Weapon 12 | 2 3 7 Tool/Special . | . . . Average Slot Usage (%) 89 | . 100 85 Engine 13 | . 14 13 Treads 17 | . 26 14 Wheel 10 | . 1 13 Storage 4 | . 14 1 Protection 12 | . 10 13 Energy Gun 2 | . 8 . Energy Cannon 17 | . 10 20 Ballistic Gun 7 | . 8 7 Peak Build Rating 13 | 7 11 13 Average Rating 11 | 6 9 11 On Entrance 7 | 6 7 10 Avg Prop Armor Cover (%) 4 | . 9 4 Naked Turns . | . . . Heaviest Build 92 | 13 92 92 Greatest Support 40 | 40 40 12 Greatest Overweight (x) 7 | . 7 7 Average Overweight (x) 2 | . . 2 Largest Inventory Capacity 25 | 8 25 25 Average Capacity 8 | 8 14 6 Most Carried 16 | 7 16 16 Average Carried 7 | 6 12 5 Final Capacity 25 | 8 25 5 Final Carried 16 | 5 16 4 Class Distribution -------------------- 61% | Subdweller-Mutant 38% | Mutant Dominant Class ---------------- Mutant | -10/Materials Subdweller-Mutant | -10/Subcaves Resources | -11 -10 -10 ----------- Run | Yrd Mat Sub Matter Collected 796 | 285 264 247 Remotely 94 | 32 62 . Salvage Created 1711 | 68 757 886 Parts 121 | 7 47 67 Haulers Intercepted 2 | . 2 . Recyclers Shooed . | . . . Parts Field Recycled . | . . . Retrieved Matter . | . . . Parts Self-Destructed 16 | . . 16 Prevented . | . . . Parts Restored . | . . . Kills | -11 -10 -10 ------- Run | Yrd Mat Sub Combat Hostiles Destroyed 39 | . 20 19 Guns 12 | . 11 1 Cannons 27 | . 9 18 Classes Destroyed 10 | 2 6 2 Worker 1 | . 1 . Tunneler 2 | 1 1 . Hauler 2 | . 2 . Recycler 1 | 1 . . Operator 1 | . 1 . Watcher 1 | . 1 . Swarmer 15 | . 9 6 Grunt 11 | . 11 . Artisan 3 | . . 3 Subdweller 13 | . . 13 Best Kill Streak 4 | 1 4 3 Combat Bots Only 4 | . 4 3 Max Kills in Single Turn 2 | 1 2 1 Gunslinging . | . . . Exploded . | . . . Melee . | . . . Uniques/NPCs Destroyed . | . . . Combat | -11 -10 -10 -------- Run | Yrd Mat Sub Hostile Shots Fired 191 | . 76 115 Missed 49 | . 22 27 Hits 142 | . 54 88 Projectile 142 | . 54 88 Critical Strikes 5 | . 1 4 Damage Taken 2410 | . 545 1865 Core 263 | . 76 187 Absorbed by Shields . | . . . Core Remaining (%) 100 | 100 . . Volleys Fired 207 | 12 63 132 Largest 2 | 2 2 2 Hottest 160 | 40 120 160 Shots Fired 360 | 24 125 211 Gun 163 | 24 83 56 Cannon 197 | . 42 155 Launcher . | . . . Special . | . . . Kinetic 124 | 24 44 56 Thermal 236 | . 81 155 Explosive . | . . . Electromagnetic . | . . . Robot Hit Streak 18 | 6 10 18 Robot Miss Streak 4 | 3 4 4 Penetration Max . | . . . Secondary Targets 2 | . 2 . Max Gunslinging Chain 1 | . 1 . Shots Hit Robots 181 | 12 73 96 Core Hits 61 | 3 29 29 Critical Kills . | . . . Critical Parts Destroyed . | . . . Critical Strikes 3 | . 2 1 Burn 2 | . 2 . Destroy 1 | . . 1 Melee Attacks . | . . . Impact . | . . . Slashing . | . . . Piercing . | . . . Sneak Attacks . | . . . Combat Hostiles . | . . . Follow-up Attacks . | . . . Damage Inflicted 3620 | 165 1201 2254 Guns 1030 | 163 748 119 Cannons 2574 | . 439 2135 Explosions . | . . . Melee . | . . . Ramming 16 | 2 14 . Kinetic 634 | 163 352 119 Thermal 2970 | . 835 2135 Explosive . | . . . Electromagnetic . | . . . Impact . | . . . Slashing . | . . . Piercing . | . . . Highest Corruption . | . . . Average Corruption . | . . . Corruption Purged . | . . . Corruption Blocked . | . . . Overload Shots . | . . . Overflow Damage 52 | . 31 21 Projectiles 52 | . 31 21 Explosions . | . . . Melee . | . . . Knockbacks . | . . . Impact . | . . . Kinetic . | . . . Secondary . | . . . Self-Inflicted Damage . | . . . Shots . | . . . Rammed 3 | 1 2 . Targets Rammed 3 | 1 2 . Kicked . | . . . Crushed . | . . . Highest Temperature 490 | . 409 490 Average Temperature 117 | . 139 93 Received Heat Transfer 956 | . 171 785 Effects 8 | . 6 2 Shutdowns 2 | . 1 1 Interference 3 | . 3 . Short Circuit 1 | . 1 . Damage (minor) 2 | . 1 1 Siege Activations . | . . . Martial Activations . | . . . Shielding Activations . | . . . Robots Disrupted . | . . . Combat Hostiles . | . . . Robots Corrupted . | . . . Combat Hostiles . | . . . Parts Fried . | . . . Impact Corruptions . | . . . Robots Melted 1 | . 1 . Combat Hostiles . | . . . Parts Melted 7 | . 4 3 Heat Transferred 5439 | . 2035 3404 Parts Sabotaged . | . . . Parts Stolen . | . . . Parts Stripped . | . . . Power Chain Reactions . | . . . Alert | -11 -10 -10 ------- Run | Yrd Mat Sub Maximum Alert Level 1 | . 1 . Low Security (%) 82 | 100 81 . Level 1 17 | . 18 . Level 2 . | . . . Level 3 . | . . . Level 4 . | . . . Level 5 . | . . . High Security . | . . . Max Security . | . . . Peak Influence 231 | 5 231 . Initial . | . . . Average 96 | . 103 . Influence Increases 818 | 10 648 160 Destroy 0b10 Robot/C 520 | . 400 120 Destroy 0b10 Robot/NC 40 | 10 30 . Destroy Leader 86 | . 76 10 Successful Hack 34 | . 34 . Select Force Hacks 60 | . 60 . Destroy Structure 3 | . 3 . Lose Combat Pursuer 75 | . 45 30 Influence Decreases 780 | 10 443 327 Entered New Map 99 | . . 99 Time Decay 621 | 10 443 168 Lost Part 60 | . . 60 Squads Dispatched 3 | . 3 . Investigation 2 | . 2 . Extermination . | . . . Reinforcement 1 | . 1 . Assault . | . . . Garrison . | . . . Intercept . | . . . Searches Triggered . | . . . Construction Impeded . | . . . Haulers Reinforced . | . . . Active Scanning Responses . | . . . Cargo Convoy Interrupts . | . . . Stealth | -11 -10 -10 --------- Run | Yrd Mat Sub Distress Signals . | . . . Communications Jammed . | . . . Distress Signals . | . . . Times Spotted 49 | . 27 22 Peak Tracking Total 6 | . 5 6 Tactical Retreats 4 | . 3 1 Traps | -11 -10 -10 ------- Run | Yrd Mat Sub Traps Triggered 9 | . 1 8 Indirectly . | . . . Trap Hack Attempts . | . . . Triggered . | . . . Disarmed . | . . . Reprogrammed . | . . . Reused . | . . . Traps Extracted . | . . . Installed . | . . . Triggered . | . . . Machines | -11 -10 -10 ---------- Run | Yrd Mat Sub Machines Disabled 2 | . . 2 Max in Single Turn 1 | . . 1 Machines Repaired . | . . . Machines Dismantled . | . . . Machines Sabotaged . | . . . Overloaded Fab Kills . | . . . Hacking | -11 -10 -10 --------- Run | Yrd Mat Sub Machines Accessed 10 | . 8 2 Terminals 6 | . 6 . Fabricators . | . . . Repair Stations . | . . . Recycling Units 2 | . 2 . Scanalyzers . | . . . Garrison Access . | . . . Total Hacks 28 | . 24 4 Successful 21 | . 17 4 Failed 7 | . 7 . Catastrophic . | . . . Database Lockouts . | . . . Manual 22 | . 22 . Terminals 22 | . 22 . Fabricators . | . . . Repair Stations . | . . . Recycling Units 2 | . 2 . Scanalyzers . | . . . Garrison Access . | . . . Terminal Hacks 12 | . 8 4 Record 3 | . . 3 Robot Analysis 6 | . 6 . Registered Components 1 | . 1 . Zone Layout 1 | . 1 . Proto ID Catalog 1 | . . 1 Fabricator Hacks . | . . . Repair Station Hacks . | . . . Recycling Unit Hacks . | . . . Scanalyzer . | . . . Garrison Access Hacks . | . . . Unauthorized Hacks 9 | . 9 . Terminals 7 | . 7 . Botnet 2 | . 2 . Skim 5 | . 5 . Fabricators . | . . . Repair Stations . | . . . Recycling Units 2 | . 2 . Tunnel 2 | . 2 . Scanalyzers . | . . . Garrison Access . | . . . Data Cores Recovered . | . . . Used . | . . . Hacking Detections 6 | . 6 . Full Trace Events . | . . . Feedback Events . | . . . Feedback Blocked . | . . . Robot Schematics Acquired . | . . . Robots Built . | . . . Authchips . | . . . Time . | . . . Total Robot Build Rating . | . . . Part Schematics Acquired . | . . . Parts Built . | . . . Authchips . | . . . Time . | . . . Total Part Build Rating . | . . . Part Studies Acquired . | . . . Parts Repaired . | . . . Time . | . . . Parts Recycled . | . . . Recycled Matter . | . . . Retrieved Matter . | . . . Retrieved Components . | . . . Parts Scanalyzed . | . . . Part Schematics Acquired . | . . . Parts Damaged . | . . . Bothacking | -11 -10 -10 ------------ Run | Yrd Mat Sub Used RIF Installer . | . . . Robots Hacked . | . . . Non-combat . | . . . Combat . | . . . Robot Hacks Applied . | . . . Relay Couplers Released . | . . . Fabnet Peak Effective % . | . . . Robots Rewired . | . . . Allies Hacked . | . . . Hacks Repelled . | . . . Allies | -11 -10 -10 -------- Run | Yrd Mat Sub Total Allies . | . . . Largest Group . | . . . Highest-Rated Group . | . . . Highest-Rated Ally . | . . . Total Orders . | . . . Ally Attacks . | . . . Total Damage . | . . . Kills . | . . . Allies Corrupted . | . . . Allies Melted . | . . . Intel | -11 -10 -10 ------- Run | Yrd Mat Sub Active Infowar (turns) . | . . . Robot Analysis Total 6 | . 6 . Derelict Logs Recovered 3 | . . 3 Drone Launches . | . . . Drone Recoveries . | . . . Exploration | -11 -10 -10 ------------- Run | Yrd Mat Sub Turns Passed 4913 | 102 1336 3475 Spaces Moved 2715 | 50 622 2043 Core . | . . . Treads 544 | 1 543 . Legs 49 | 49 . . Wheels 2122 | . 79 2043 Hover . | . . . Flight . | . . . Fastest Speed 90 | 120 160 90 Average Speed 139 | 120 164 132 Slowest Speed 195 | 160 195 195 Overloaded Moves . | . . . Propulsion Burnouts . | . . . Robots Hopped . | . . . Potential Cave-ins 8 | . . 8 Cave-ins Triggered . | . . . Exploration Rate (%) 54 | 3 67 93 Regions Visited 2 Branch Regions 1 Pre-discovered Areas 6 | . 3 3 Known Exits Taken . | . . . Unknown Exits Taken 2 | 1 1 . Scrap Searched 12 | . . 12 Spaces Dug 14 | . . 14 Terrain Destroyed 34 | . . 34 Melee . | . . . Projectile 34 | . . 34 AOE . | . . . Terrain Rammed . | . . . Walls Destroyed . | . . . Machines Disabled . | . . . Actions | -11 -10 -10 --------- Run | Yrd Mat Sub Total 3482 | 68 809 2605 Wait 467 | . 85 382 Move 2714 | 50 621 2043 Hop . | . . . Pick Up 27 | 1 17 9 Fast Attach 8 | 1 . 7 Attach 7 | 2 . 5 Detach 1 | . . 1 Swap 15 | . 12 3 Drop 27 | 2 9 16 Fire 207 | 12 63 132 Melee . | . . . Ram . | . . . Kick . | . . . Crush 2 | . 2 . Escape Stasis . | . . . Rewire . | . . . Trap . | . . . Miscellaneous 7 | . . 7 Route ------- -11/Scrapyard -10/Materials (discovered 5 exits: *Mat x3 / Min / *Sub) -10/Subcaves (discovered 3 exits: *Mat x2 / Rec) History --------- Turn | Location | Event 32 | -11/Scrapyard | Discovered new exit (range 3) 103 | -11/Scrapyard | Entered Materials 305 | -10/Materials | Build established: Mutant 318 | -10/Materials | Discovered new exit (range 13) 564 | -10/Materials | Discovered new exit (range 10) 1076 | -10/Materials | Discovered new exit (range 16) 1136 | -10/Materials | Learned location of Mines (-10) 1181 | -10/Materials | Loaded intel: 8 trap records 1215 | -10/Materials | Learned location of 2 exits from Mines 1239 | -10/Materials | Identified exit to Mines 1252 | -10/Materials | Identified exit to Materials 1255 | -10/Materials | Learned 2 Storage zone layouts 1265 | -10/Materials | Learned 2 Mines zone layouts 1439 | -10/Materials | Entered Subcaves 1440 | -10/Subcaves | Approached by a straggling Scientist 1440 | -10/Subcaves | Identified exit to Materials 1440 | -10/Subcaves | Identified exit to Recycling 1571 | -10/Subcaves | Lost 4 parts (1p1n1u1w) 1608 | -10/Subcaves | Core integrity fell below 50% 1703 | -10/Subcaves | Shifting Twisted Machinery released Scrap Shield 1856 | -10/Subcaves | Shifting Twisted Machinery released Sub. Machine Gun 1857 | -10/Subcaves | Shifting Twisted Machinery released Sub. Laser 1939 | -10/Subcaves | Shifting Twisted Machinery released Battle Cannon 2166 | -10/Subcaves | Build established: Subdweller-Mutant 2342 | -10/Subcaves | Visited 4L-MR0's lab 2721 | -10/Subcaves | Learned location of Zion (-6) 2721 | -10/Subcaves | Met a Zionite searching for "candidates" 3010 | -10/Subcaves | Ambushed by Subdwellers from Twisted Machinery 3277 | -10/Subcaves | Core integrity fell below 20% 4133 | -10/Subcaves | Visited Clippyterm 4137 | -10/Subcaves | Learned 40 Factory zone layouts 4751 | -10/Subcaves | Shifting Twisted Machinery released Sub. Monowheel 4828 | -10/Subcaves | Shifting Twisted Machinery released Scrap Shield 4914 | -10/Subcaves | Destroyed by Shrapnel Trap Last Messages --------------- Sub. Monowheel falls loose from the Twisted Machinery. Scrap Shield falls loose from the Twisted Machinery. 04851_ Sub. Beam Cannon shoots sparks and powers down. 04851_ 4J-3H4(R) destroyed. 04866_ Dropped Broken Sub. Beam Cannon. 04868_ Acquired Sub. Beam Cannon. 04872_ D6-EO2(R) destroyed. 04875_ LT-CRL(R) destroyed. 04880_ Acquired 10 matter. 04910_ Dropped Scrap Shield. 04910_ Triggered Shrapnel Trap. 04910_ An expanding cloud of shrapnel blasts out in all directions. 04914_ Triggered Shrapnel Trap. 04914_ An expanding cloud of shrapnel blasts out in all directions. 04914_ Sub. Beam Cannon destroyed. Map ----- +----------------------------------------------------+ | ???????????????????????????????????????????????## | | ????????????????????????????????????????????????## | | ?????????????????????????????????????????????????# | | ?????????????????????????????????????????????????# | | ?????????????????????????????????????????????????? | | ???????????????##????????????????????????????????? | | ?????????????## #????????#####???????????????????? | | ????##########"####?????## #???????????????????? | | ????#["*%""" ##????# #???????????????????? | | ????#&&"&&"& #?????# ##??????????????????? | | ????#&&!![&%!## # ##???## #??????????????????? | | ????# !|%*]####### #???# #??????????????#?""# | | ????## =" !##""# ##??## #??????????????# """ | | ?????#### " " #### ##??????????????# """ | | ????????## !"""" = #???????????????# "" | | ?????????#### "# " """ #??????????????##"" " | | ????????????##### ###"" ####??????????????# ""*% | | ????????????????####?## ##?????????????????#""== | | ??????????????????????## ###?????#####?????## | | ??????????????????????# ;; #?????# ###?#### | | ??????????????????????# ;;#?????# ###"### | | ??????????????????????#; ! ;##????# ## ### | | ??????????????????????##; ;#??### % < #!" | | ???????????????????????#; ;#### *%&" | | ???????????????????????#; ^#;;; " [ | | ???????????????????????##@ ^^ ; ###"" # # | | ?????????????????????###### ;;###### # ## | | ??????????????######## ###^ ;;; #???# ## | | ??????????????# ! #; #???### # | | ??????????????#%*#### ^ ######?????## | | ??????????????#/#|""## # ##^ #??????????#### | | ??????????????# #"/%"# # ########?????????????### | | ??????????????# #"%&"# ####??????????????????????? | | ??????????????# ##""%# #?????????????????????????? | | ??????????????# ####!=#?????????????????????????? | | ??????????????## ##?????????????????????????? | | ???????????????########??????????????????????????? | | ?????????????????????????????????????????????????? | | ?????????????????????????????????????????????????? | | ?????????????????????????????????????????????????? | | ?????????????????????????????????????????????????? | | ?????????????????????????????????????????????????? | | ?????????????????????????????????????????????????? | | ?????????????????????????????????????????????????? | | ?????????????????????????????????????????????????? | | ?????????????????????????????????????????????????? | | ?????????????????????????????????????????????????? | | ?????????????????????????????????????????????????? | | ????????????????????????????????????????########## | | ???????????????????????????????????????## ##"## # | +----------------------------------------------------+ Best States ------------- Heat Dissipation 35 Energy Generation 15 Energy Capacity 200 Matter Stores 300 Matter Capacity 300 Sight Range 16 Terrain Scan Density 10 Armor Coverage 800 Evasion (%) 55 Recoil Reduction 2 Item Schematics ----------------- None Robot Schematics ------------------ None Fabricated ------------ Nothing Repaired ---------- Nothing Studied --------- None Alien Tech Used ----------------- None Achievements -------------- None Challenges ------------ None Game ------ Seed AlphaNetworkedFrame Manual? 0 Play Time 00:26:19 Cumulative 428.0 hours Start 2026.04.28 @ 13:29:38 End 2026.04.28 @ 14:15:58 Sessions 1 Manual Loads 0 Difficulty Rogue Special Mode None Game No. 360 Rogue 324 Adventurer 36 Explorer 0 Win Type - Total 5 Types 2/0/0/1/0/0/0/2/0/0 Lore% 79 Gallery% 69 Achievement% 59 Wizard Run 0 Options --------- Layout 1 ASCII 0 Keyboard 0 Movement Numpad Keybinds 0 Fullscreen 1 Font 48/Smallcaps Map View 50x35 Zoom Use 0% Tactical HUD 1 Map Filters NONE Filters NONE Steam 1 RUN: 0f2dceca-70a3-4e4c-bc44-98259a4ab7f5